[Event "*** Titled Tuesday Blitz"]
[Site "Chess.com"]
[Date "2020.10.27"]
[Round "8"]
[White "Aygehovit1992"]
[Black "MattyDPerrine"]
[Result "1-0"]
[WhiteElo "2641"]
[BlackElo "2485"]
[TimeControl "180+1"]
[EndTime "11:26:47 PDT"]
[Termination "Aygehovit1992 won by resignation"]

1. e4 {[%clk 0:02:58]} 1... c5 {[%clk 0:02:59.6]} 2. Nf3 {[%clk 0:02:52.8]} 2...
e6 {[%clk 0:02:59.7]} 3. d4 {[%clk 0:02:52.8]} 3... cxd4 {[%clk 0:03:00.6]} 4.
Nxd4 {[%clk 0:02:53.7]} 4... Nf6 {[%clk 0:03:00.9]} 5. Nc3 {[%clk 0:02:54.2]}
5... Nc6 {[%clk 0:03:01.1]} 6. Be2 {[%clk 0:02:51.4]} 6... Bb4 {[%clk
0:03:00.3]} 7. Nxc6 {[%clk 0:02:50.9]} 7... bxc6 {[%clk 0:02:44.8]} 8. Qd3
{[%clk 0:02:49.8]} 8... d5 {[%clk 0:02:40.9]} 9. e5 {[%clk 0:02:48.3]} 9... Ne4
{[%clk 0:02:35.8]} 10. O-O {[%clk 0:02:48.2]} 10... Bxc3 {[%clk 0:02:03.8]} 11.
bxc3 {[%clk 0:02:49.1]} 11... Qa5 {[%clk 0:02:03.2]} 12. Bd2 {[%clk 0:02:08.4]}
12... Nxd2 {[%clk 0:01:54.7]} 13. Qxd2 {[%clk 0:02:09.3]} 13... Ba6 {[%clk
0:01:53.1]} 14. Bxa6 {[%clk 0:02:03.8]} 14... Qxa6 {[%clk 0:01:53.3]} 15. f4
{[%clk 0:02:04.5]} 15... g6 {[%clk 0:01:38.4]} 16. Rf3 {[%clk 0:02:03.7]} 16...
Kd7 {[%clk 0:01:26.8]} 17. h3 {[%clk 0:01:59.1]} 17... h5 {[%clk 0:01:23.5]} 18.
Kh2 {[%clk 0:01:58.5]} 18... Rab8 {[%clk 0:01:20.2]} 19. a4 {[%clk 0:01:56.4]}
19... Rb2 {[%clk 0:01:08.8]} 20. Qf2 {[%clk 0:01:54.1]} 20... Rhb8 {[%clk
0:01:03.1]} 21. Qc5 {[%clk 0:01:46.7]} 21... Qb6 {[%clk 0:00:52.8]} 22. Qd6+
{[%clk 0:01:46.4]} 22... Ke8 {[%clk 0:00:51.8]} 23. f5 {[%clk 0:01:46.8]} 23...
gxf5 {[%clk 0:00:40.3]} 24. Rg3 {[%clk 0:01:45.6]} 1-0

[Event "*** Titled Tuesday Blitz"]
[Site "Chess.com"]
[Date "2020.10.27"]
[Round "8"]
[White "KarstenHansch"]
[Black "Ermito2020"]
[Result "0-1"]
[WhiteElo "2475"]
[BlackElo "2644"]
[TimeControl "180+1"]
[EndTime "11:26:47 PDT"]
[Termination "Ermito2020 won by resignation"]

1. e4 {[%clk 0:03:00.9]} 1... c5 {[%clk 0:02:58.4]} 2. Nc3 {[%clk 0:02:59.3]}
2... Nc6 {[%clk 0:02:57.4]} 3. Bb5 {[%clk 0:02:57.7]} 3... Nd4 {[%clk
0:02:55.3]} 4. Nge2 {[%clk 0:02:56.9]} 4... e6 {[%clk 0:02:50.6]} 5. O-O {[%clk
0:02:56.1]} 5... a6 {[%clk 0:02:42.2]} 6. Bd3 {[%clk 0:02:53.8]} 6... Nc6 {[%clk
0:02:42.1]} 7. a4 {[%clk 0:02:51]} 7... Nb4 {[%clk 0:02:31.4]} 8. Bc4 {[%clk
0:02:49.6]} 8... d5 {[%clk 0:02:31.3]} 9. exd5 {[%clk 0:02:48.1]} 9... exd5
{[%clk 0:02:31]} 10. Bb3 {[%clk 0:02:47.4]} 10... Nf6 {[%clk 0:02:30.2]} 11. d4
{[%clk 0:02:46.8]} 11... c4 {[%clk 0:02:29.5]} 12. Ba2 {[%clk 0:02:46.7]} 12...
Be7 {[%clk 0:02:25]} 13. b3 {[%clk 0:02:43.5]} 13... O-O {[%clk 0:02:20.2]} 14.
bxc4 {[%clk 0:02:42.9]} 14... Nxa2 {[%clk 0:02:19]} 15. Rxa2 {[%clk 0:02:42.9]}
15... dxc4 {[%clk 0:02:19.9]} 16. Bg5 {[%clk 0:02:39.5]} 16... h6 {[%clk
0:02:19]} 17. Bxf6 {[%clk 0:02:39.5]} 17... Bxf6 {[%clk 0:02:19.9]} 18. Ne4
{[%clk 0:02:39.7]} 18... Bf5 {[%clk 0:02:15.6]} 19. Nxf6+ {[%clk 0:02:39.1]}
19... Qxf6 {[%clk 0:02:16.5]} 20. c3 {[%clk 0:02:39.4]} 20... b5 {[%clk
0:02:15.2]} 21. Ng3 {[%clk 0:02:34.9]} 21... Bd3 {[%clk 0:02:14]} 22. Re1 {[%clk
0:02:34.8]} 22... Rae8 {[%clk 0:02:11.3]} 23. axb5 {[%clk 0:02:33.5]} 23... axb5
{[%clk 0:02:10.9]} 24. h3 {[%clk 0:02:24.2]} 24... b4 {[%clk 0:02:09.3]} 25.
cxb4 {[%clk 0:02:23.4]} 25... Qxd4 {[%clk 0:02:08.8]} 26. Rxe8 {[%clk
0:02:19.2]} 26... Rxe8 {[%clk 0:02:08.5]} 27. Nf1 {[%clk 0:02:12.8]} 27... c3
{[%clk 0:02:00.2]} 28. Ne3 {[%clk 0:02:11.3]} 28... Rxe3 {[%clk 0:01:43.4]} 29.
fxe3 {[%clk 0:02:09.7]} 29... Qxe3+ {[%clk 0:01:44.3]} 30. Kh1 {[%clk
0:02:09.8]} 30... Be4 {[%clk 0:01:44.4]} 31. Qg4 {[%clk 0:01:48.1]} 31... Kh7
{[%clk 0:01:29.9]} 32. Re2 {[%clk 0:01:41.9]} 32... c2 {[%clk 0:01:18.4]} 0-1

[Event "*** Titled Tuesday Blitz"]
[Site "Chess.com"]
[Date "2020.10.27"]
[Round "8"]
[White "Mbneu"]
[Black "Cocaino74"]
[Result "0-1"]
[WhiteElo "2187"]
[BlackElo "2376"]
[TimeControl "180+1"]
[EndTime "11:26:47 PDT"]
[Termination "Cocaino74 won by resignation"]

1. d4 {[%clk 0:03:00.9]} 1... a5 {[%clk 0:02:50.2]} 2. c4 {[%clk 0:02:59.4]}
2... Ra6 {[%clk 0:02:50]} 3. Nc3 {[%clk 0:02:58.2]} 3... Rg6 {[%clk 0:02:49.9]}
4. g3 {[%clk 0:02:56.8]} 4... Nc6 {[%clk 0:02:46.5]} 5. Bg2 {[%clk 0:02:55.8]}
5... e5 {[%clk 0:02:46.6]} 6. dxe5 {[%clk 0:02:10.1]} 6... Nxe5 {[%clk
0:02:47.5]} 7. Nf3 {[%clk 0:02:08.8]} 7... Nxc4 {[%clk 0:02:41.6]} 8. O-O {[%clk
0:02:03.7]} 8... Nf6 {[%clk 0:02:39]} 9. Nh4 {[%clk 0:01:38.9]} 9... Bb4 {[%clk
0:02:26.6]} 10. Nxg6 {[%clk 0:01:34.7]} 10... hxg6 {[%clk 0:02:27.5]} 11. a3
{[%clk 0:01:28.5]} 11... Bxc3 {[%clk 0:02:27]} 12. bxc3 {[%clk 0:01:28.1]} 12...
d5 {[%clk 0:02:27.8]} 13. Bg5 {[%clk 0:01:25.4]} 13... c6 {[%clk 0:02:26.7]} 14.
Qd4 {[%clk 0:01:24.1]} 14... Rh5 {[%clk 0:02:10.7]} 15. h4 {[%clk 0:01:23.1]}
15... Be6 {[%clk 0:01:58.5]} 16. e4 {[%clk 0:01:18.1]} 16... dxe4 {[%clk
0:01:57.9]} 17. Qxd8+ {[%clk 0:01:12.1]} 17... Kxd8 {[%clk 0:01:58.8]} 18. Bxe4
{[%clk 0:01:11]} 18... Rxg5 {[%clk 0:01:51.3]} 19. hxg5 {[%clk 0:01:04.9]} 19...
Nxe4 {[%clk 0:01:51.2]} 20. Rfe1 {[%clk 0:00:52.5]} 20... Nxg5 {[%clk
0:01:40.4]} 21. Red1+ {[%clk 0:00:39.7]} 21... Bd5 {[%clk 0:01:38.1]} 22. Rab1
{[%clk 0:00:39.1]} 22... Nf3+ {[%clk 0:01:33.9]} 23. Kf1 {[%clk 0:00:38.1]}
23... Nfd2+ {[%clk 0:01:34.3]} 0-1

[Event "*** Titled Tuesday Blitz"]
[Site "Chess.com"]
[Date "2020.10.27"]
[Round "8"]
[White "GMaka"]
[Black "sara_khm"]
[Result "0-1"]
[WhiteElo "2393"]
[BlackElo "2576"]
[TimeControl "180+1"]
[EndTime "11:26:54 PDT"]
[Termination "sara_khm won by resignation"]

1. d4 {[%clk 0:03:00.9]} 1... Nf6 {[%clk 0:02:59.7]} 2. c4 {[%clk 0:03:00.4]}
2... e6 {[%clk 0:03:00]} 3. Nc3 {[%clk 0:03:01.3]} 3... Bb4 {[%clk 0:02:57.9]}
4. f3 {[%clk 0:03:00.5]} 4... c5 {[%clk 0:02:56.6]} 5. d5 {[%clk 0:02:58.7]}
5... exd5 {[%clk 0:02:55.1]} 6. cxd5 {[%clk 0:02:59.6]} 6... O-O {[%clk
0:02:47.4]} 7. e4 {[%clk 0:02:58.6]} 7... d6 {[%clk 0:02:36.3]} 8. Bg5 {[%clk
0:02:57.6]} 8... Nbd7 {[%clk 0:02:35.4]} 9. Bd3 {[%clk 0:02:53]} 9... a6 {[%clk
0:02:33.3]} 10. Ne2 {[%clk 0:02:52.7]} 10... b5 {[%clk 0:02:33.3]} 11. O-O
{[%clk 0:02:49.4]} 11... c4 {[%clk 0:02:32.9]} 12. Bc2 {[%clk 0:02:49.6]} 12...
Qb6+ {[%clk 0:02:32.6]} 13. Kh1 {[%clk 0:02:45.4]} 13... Bc5 {[%clk 0:02:32.7]}
14. Ng3 {[%clk 0:02:37.3]} 14... h6 {[%clk 0:02:25.4]} 15. Bf4 {[%clk 0:02:22]}
15... Ne5 {[%clk 0:02:21]} 16. Bxe5 {[%clk 0:02:18.1]} 16... dxe5 {[%clk
0:02:21.1]} 17. f4 {[%clk 0:02:10.1]} 17... Ng4 {[%clk 0:02:19]} 18. fxe5 {[%clk
0:02:06.4]} 18... Nf2+ {[%clk 0:02:15.7]} 19. Rxf2 {[%clk 0:02:06.2]} 19... Bxf2
{[%clk 0:02:15.9]} 20. Nf5 {[%clk 0:01:57.2]} 20... Re8 {[%clk 0:02:11.9]} 21.
Qf3 {[%clk 0:01:37.9]} 21... Rxe5 {[%clk 0:02:01.8]} 22. Rf1 {[%clk 0:01:37.6]}
22... Bxf5 {[%clk 0:02:01.9]} 23. exf5 {[%clk 0:01:21.8]} 23... Bd4 {[%clk
0:01:47.1]} 24. Qg4 {[%clk 0:01:08.4]} 24... Bxc3 {[%clk 0:01:45.1]} 25. bxc3
{[%clk 0:01:06.1]} 25... Rae8 {[%clk 0:01:41.8]} 26. f6 {[%clk 0:01:00.3]} 26...
Qxf6 {[%clk 0:01:41.5]} 27. Rg1 {[%clk 0:00:43.9]} 27... Rxd5 {[%clk 0:01:37.9]}
0-1

[Event "*** Titled Tuesday Blitz"]
[Site "Chess.com"]
[Date "2020.10.27"]
[Round "8"]
[White "ChronicUnhappiness"]
[Black "TrickyFortem"]
[Result "0-1"]
[WhiteElo "2371"]
[BlackElo "2548"]
[TimeControl "180+1"]
[EndTime "11:26:54 PDT"]
[Termination "TrickyFortem won on time"]

1. c4 {[%clk 0:03:00.9]} 1... e5 {[%clk 0:02:58.9]} 2. Nc3 {[%clk 0:02:57.6]}
2... Nf6 {[%clk 0:02:59.3]} 3. e3 {[%clk 0:02:56.2]} 3... d5 {[%clk 0:02:59.3]}
4. cxd5 {[%clk 0:02:53]} 4... Nxd5 {[%clk 0:03:00.2]} 5. Nf3 {[%clk 0:02:53.6]}
5... Nc6 {[%clk 0:02:58.7]} 6. Bb5 {[%clk 0:02:53.2]} 6... Nxc3 {[%clk
0:02:57.9]} 7. bxc3 {[%clk 0:02:52.2]} 7... Bd6 {[%clk 0:02:57.1]} 8. d4 {[%clk
0:02:49.3]} 8... O-O {[%clk 0:02:56.7]} 9. O-O {[%clk 0:02:48.6]} 9... exd4
{[%clk 0:02:55.6]} 10. cxd4 {[%clk 0:02:48]} 10... Nb4 {[%clk 0:02:54.9]} 11. e4
{[%clk 0:02:37.4]} 11... a6 {[%clk 0:02:54.1]} 12. Be2 {[%clk 0:02:27.7]} 12...
b5 {[%clk 0:02:50.4]} 13. e5 {[%clk 0:02:13.9]} 13... Be7 {[%clk 0:02:50.4]} 14.
Ba3 {[%clk 0:01:53.4]} 14... Bb7 {[%clk 0:02:49.5]} 15. Bxb4 {[%clk 0:01:45.6]}
15... Bxb4 {[%clk 0:02:49.2]} 16. Qc2 {[%clk 0:01:17]} 16... Rc8 {[%clk
0:02:45.9]} 17. a4 {[%clk 0:01:07.9]} 17... bxa4 {[%clk 0:02:43.7]} 18. Rxa4
{[%clk 0:01:00.8]} 18... a5 {[%clk 0:02:44.3]} 19. Qb3 {[%clk 0:00:31.9]} 19...
Bd5 {[%clk 0:02:33.8]} 20. Bc4 {[%clk 0:00:31.4]} 20... Bxf3 {[%clk 0:02:34]}
21. Qxf3 {[%clk 0:00:30.8]} 21... Qxd4 {[%clk 0:02:34.6]} 22. Qd5 {[%clk
0:00:16.5]} 22... Rfd8 {[%clk 0:02:34.1]} 23. Qxf7+ {[%clk 0:00:15.1]} 23... Kh8
{[%clk 0:02:33.6]} 24. Raa1 {[%clk 0:00:10.7]} 24... Bc5 {[%clk 0:02:24.6]} 25.
h3 {[%clk 0:00:09.4]} 25... a4 {[%clk 0:02:17.1]} 26. Rad1 {[%clk 0:00:08.5]}
26... Qxe5 {[%clk 0:02:15.9]} 27. Rde1 {[%clk 0:00:04]} 27... Qd4 {[%clk
0:02:15.9]} 28. Re3 {[%clk 0:00:02.1]} 28... Rf8 {[%clk 0:02:14.3]} 0-1

[Event "*** Titled Tuesday Blitz"]
[Site "Chess.com"]
[Date "2020.10.27"]
[Round "8"]
[White "Sychev_Klementy"]
[Black "RaunakSadhwani2005"]
[Result "1/2-1/2"]
[WhiteElo "2882"]
[BlackElo "2970"]
[TimeControl "180+1"]
[EndTime "11:26:58 PDT"]
[Termination "Game drawn by agreement"]

1. e4 {[%clk 0:03:00.9]} 1... e5 {[%clk 0:02:59.9]} 2. Nf3 {[%clk 0:02:59.7]}
2... Nc6 {[%clk 0:02:59.8]} 3. Bb5 {[%clk 0:02:59.9]} 3... Nf6 {[%clk
0:02:59.7]} 4. O-O {[%clk 0:02:57.3]} 4... Nxe4 {[%clk 0:02:58.3]} 5. Re1 {[%clk
0:02:54.2]} 5... Nd6 {[%clk 0:02:57.9]} 6. a4 {[%clk 0:02:54.7]} 6... Be7 {[%clk
0:02:53.4]} 7. Nc3 {[%clk 0:02:54.8]} 7... O-O {[%clk 0:02:48.9]} 8. d4 {[%clk
0:02:54.2]} 8... e4 {[%clk 0:02:47.6]} 9. Nxe4 {[%clk 0:02:53.8]} 9... Nxe4
{[%clk 0:02:47.3]} 10. Rxe4 {[%clk 0:02:54.4]} 10... d5 {[%clk 0:02:46]} 11. Re1
{[%clk 0:02:53.8]} 11... Bd6 {[%clk 0:02:35.1]} 12. Bg5 {[%clk 0:02:42.7]} 12...
Ne7 {[%clk 0:02:28.8]} 13. Bd3 {[%clk 0:02:31.7]} 13... f6 {[%clk 0:02:20.7]}
14. Bd2 {[%clk 0:02:09.7]} 14... Bf5 {[%clk 0:02:19.8]} 15. Qe2 {[%clk
0:02:01.5]} 15... Bxd3 {[%clk 0:02:13]} 16. Qxd3 {[%clk 0:02:00.6]} 16... Qd7
{[%clk 0:02:12.8]} 17. b3 {[%clk 0:01:46.2]} 17... c6 {[%clk 0:02:10.7]} 18. Nh4
{[%clk 0:01:29.7]} 18... Rae8 {[%clk 0:02:08.8]} 19. Re2 {[%clk 0:01:25.5]}
19... g5 {[%clk 0:01:57.6]} 20. Nf3 {[%clk 0:01:22.8]} 20... Ng6 {[%clk
0:01:53.8]} 21. Rxe8 {[%clk 0:01:17.6]} 21... Rxe8 {[%clk 0:01:54.7]} 22. Re1
{[%clk 0:01:04.8]} 22... Rxe1+ {[%clk 0:01:48.1]} 23. Nxe1 {[%clk 0:01:04.1]}
23... Kf7 {[%clk 0:01:44.8]} 24. g3 {[%clk 0:01:00.1]} 24... h5 {[%clk
0:01:39.9]} 25. Ng2 {[%clk 0:00:55]} 25... h4 {[%clk 0:01:31.3]} 26. Ne3 {[%clk
0:00:54.4]} 26... Qe6 {[%clk 0:01:26.6]} 27. Qf5 {[%clk 0:00:52.5]} 27... Qxf5
{[%clk 0:01:21.1]} 28. Nxf5 {[%clk 0:00:52.4]} 1/2-1/2

[Event "*** Titled Tuesday Blitz"]
[Site "Chess.com"]
[Date "2020.10.27"]
[Round "8"]
[White "Karateloru"]
[Black "RobertoJBM"]
[Result "1-0"]
[WhiteElo "2680"]
[BlackElo "2789"]
[TimeControl "180+1"]
[EndTime "11:27:08 PDT"]
[Termination "Karateloru won by resignation"]

1. Nf3 {[%clk 0:03:00.9]} 1... d5 {[%clk 0:03:00]} 2. c4 {[%clk 0:03:01]} 2...
c6 {[%clk 0:02:59.9]} 3. b3 {[%clk 0:03:00.5]} 3... Bg4 {[%clk 0:02:56.7]} 4.
Bb2 {[%clk 0:02:58.1]} 4... Nd7 {[%clk 0:02:56.4]} 5. e3 {[%clk 0:02:57.4]} 5...
e6 {[%clk 0:02:56.2]} 6. Be2 {[%clk 0:02:57.2]} 6... Ngf6 {[%clk 0:02:56.4]} 7.
O-O {[%clk 0:02:57.8]} 7... Bd6 {[%clk 0:02:55.3]} 8. Nc3 {[%clk 0:02:56.8]}
8... Qe7 {[%clk 0:02:54.6]} 9. Qc2 {[%clk 0:02:56.4]} 9... O-O {[%clk
0:02:53.5]} 10. d4 {[%clk 0:02:56.3]} 10... Rfe8 {[%clk 0:02:42.4]} 11. e4
{[%clk 0:02:55.9]} 11... dxe4 {[%clk 0:02:40.9]} 12. Nxe4 {[%clk 0:02:56.8]}
12... Nxe4 {[%clk 0:02:41.5]} 13. Qxe4 {[%clk 0:02:57.3]} 13... Bf5 {[%clk
0:02:42]} 14. Qe3 {[%clk 0:02:53.7]} 14... Ba3 {[%clk 0:02:40.2]} 15. Bxa3
{[%clk 0:02:51.5]} 15... Qxa3 {[%clk 0:02:41.1]} 16. Rfd1 {[%clk 0:02:47.4]}
16... a5 {[%clk 0:02:40]} 17. Qd2 {[%clk 0:02:22.7]} 17... Red8 {[%clk
0:02:33.1]} 18. Rac1 {[%clk 0:02:10.8]} 18... h6 {[%clk 0:02:28.3]} 19. Rc3
{[%clk 0:02:08.3]} 19... Nf6 {[%clk 0:02:23.6]} 20. Bd3 {[%clk 0:02:01.6]} 20...
Bg4 {[%clk 0:02:21.1]} 21. Bb1 {[%clk 0:02:00.8]} 21... c5 {[%clk 0:02:15.6]}
22. Rd3 {[%clk 0:01:52.8]} 22... Bxf3 {[%clk 0:02:11.5]} 23. gxf3 {[%clk
0:01:52.2]} 23... cxd4 {[%clk 0:02:04.5]} 24. Rxd4 {[%clk 0:01:53.1]} 24... Rxd4
{[%clk 0:02:04.2]} 25. Qxd4 {[%clk 0:01:54]} 25... a4 {[%clk 0:02:01.4]} 26. Qb6
{[%clk 0:01:48.3]} 26... axb3 {[%clk 0:01:59.5]} 27. axb3 {[%clk 0:01:49.2]}
27... Qe7 {[%clk 0:01:37]} 28. Qd6 {[%clk 0:01:24.8]} 28... Qxd6 {[%clk
0:01:34.1]} 29. Rxd6 {[%clk 0:01:25.3]} 29... Ra1 {[%clk 0:01:29]} 30. Rd8+
{[%clk 0:01:24.9]} 1-0

[Event "*** Titled Tuesday Blitz"]
[Site "Chess.com"]
[Date "2020.10.27"]
[Round "8"]
[White "ARTHURMOTIVATOR"]
[Black "BikingBrian"]
[Result "1-0"]
[WhiteElo "2369"]
[BlackElo "2263"]
[TimeControl "180+1"]
[EndTime "11:27:14 PDT"]
[Termination "ARTHURMOTIVATOR won by resignation"]

1. e4 {[%clk 0:03:00.9]} 1... c5 {[%clk 0:02:57.9]} 2. Nf3 {[%clk 0:02:59.4]}
2... g6 {[%clk 0:02:57.8]} 3. h4 {[%clk 0:02:57.1]} 3... h5 {[%clk 0:02:57.1]}
4. Bc4 {[%clk 0:02:56.1]} 4... Bg7 {[%clk 0:02:56.5]} 5. c3 {[%clk 0:02:55]}
5... e6 {[%clk 0:02:55.8]} 6. d4 {[%clk 0:02:51.5]} 6... cxd4 {[%clk 0:02:56.7]}
7. cxd4 {[%clk 0:02:51.7]} 7... d5 {[%clk 0:02:56.4]} 8. Bb5+ {[%clk 0:02:50.7]}
8... Bd7 {[%clk 0:02:53.3]} 9. Bxd7+ {[%clk 0:02:50.1]} 9... Qxd7 {[%clk
0:02:51.6]} 10. Nc3 {[%clk 0:02:42.2]} 10... dxe4 {[%clk 0:02:45.4]} 11. Nxe4
{[%clk 0:02:41.4]} 11... Nf6 {[%clk 0:02:45.4]} 12. Nc5 {[%clk 0:02:38.4]} 12...
Qe7 {[%clk 0:02:23.6]} 13. Qa4+ {[%clk 0:02:30]} 13... Nbd7 {[%clk 0:02:18.2]}
14. Nxb7 {[%clk 0:02:23.3]} 14... O-O {[%clk 0:02:17.7]} 15. O-O {[%clk
0:02:17.2]} 15... Rfb8 {[%clk 0:02:12.6]} 16. Na5 {[%clk 0:02:13.8]} 16... Rb4
{[%clk 0:02:12.3]} 17. Qc2 {[%clk 0:02:09.2]} 17... Nd5 {[%clk 0:02:05.1]} 18.
Nc6 {[%clk 0:02:06.8]} 18... Qd6 {[%clk 0:02:03.6]} 19. Nxb4 {[%clk 0:02:05.8]}
19... Nxb4 {[%clk 0:02:03.9]} 20. Qd1 {[%clk 0:02:01.1]} 20... Rc8 {[%clk
0:02:01.9]} 21. Be3 {[%clk 0:01:52.9]} 21... Nb6 {[%clk 0:01:51.4]} 22. a3
{[%clk 0:01:49.3]} 22... Nc2 {[%clk 0:01:46]} 23. Rc1 {[%clk 0:01:46]} 23...
Nxe3 {[%clk 0:01:46.1]} 24. Rxc8+ {[%clk 0:01:43.4]} 24... Nxc8 {[%clk 0:01:47]}
25. fxe3 {[%clk 0:01:43.7]} 25... Bh6 {[%clk 0:01:41]} 26. Qd3 {[%clk 0:01:39]}
26... Ne7 {[%clk 0:01:39.7]} 27. Ne5 {[%clk 0:01:28.7]} 27... Nf5 {[%clk
0:01:36.8]} 28. Nxf7 {[%clk 0:01:22.9]} 28... Kxf7 {[%clk 0:01:33.9]} 29. e4
{[%clk 0:01:23.2]} 29... Bg7 {[%clk 0:01:23.1]} 30. exf5 {[%clk 0:01:21.9]}
30... Bxd4+ {[%clk 0:01:21.5]} 31. Kh1 {[%clk 0:01:19.7]} 31... gxf5 {[%clk
0:01:20.5]} 32. Rd1 {[%clk 0:01:15.4]} 32... e5 {[%clk 0:01:15.3]} 33. Qxf5+
{[%clk 0:01:14]} 33... Ke7 {[%clk 0:01:13.2]} 34. Rf1 {[%clk 0:01:09.1]} 34...
Qe6 {[%clk 0:01:08.7]} 35. Qf8+ {[%clk 0:01:05.5]} 35... Kd7 {[%clk 0:01:08.8]}
36. Rf7+ {[%clk 0:01:04.4]} 36... Kc6 {[%clk 0:01:09.2]} 37. Rf6 {[%clk
0:01:03.8]} 1-0

[Event "*** Titled Tuesday Blitz"]
[Site "Chess.com"]
[Date "2020.10.27"]
[Round "8"]
[White "ailime26"]
[Black "Quattroporte300"]
[Result "0-1"]
[WhiteElo "1881"]
[BlackElo "2229"]
[TimeControl "180+1"]
[EndTime "11:27:14 PDT"]
[Termination "Quattroporte300 won by resignation"]

1. e4 {[%clk 0:03:00.9]} 1... c5 {[%clk 0:02:58]} 2. Nf3 {[%clk 0:02:58.8]} 2...
d6 {[%clk 0:02:57.6]} 3. d4 {[%clk 0:02:57.4]} 3... cxd4 {[%clk 0:02:56.3]} 4.
Nxd4 {[%clk 0:02:58.3]} 4... Nf6 {[%clk 0:02:56.8]} 5. Nc3 {[%clk 0:02:53]} 5...
a6 {[%clk 0:02:57.1]} 6. Be3 {[%clk 0:02:43.9]} 6... e6 {[%clk 0:02:56.4]} 7. f3
{[%clk 0:02:26.5]} 7... b5 {[%clk 0:02:52.8]} 8. Qd2 {[%clk 0:02:17.2]} 8...
Nbd7 {[%clk 0:02:49]} 9. g4 {[%clk 0:02:16.2]} 9... h6 {[%clk 0:02:42.3]} 10. h4
{[%clk 0:02:14.2]} 10... Bb7 {[%clk 0:02:37.4]} 11. h5 {[%clk 0:02:03.7]} 11...
Rc8 {[%clk 0:02:29.2]} 12. O-O-O {[%clk 0:02:00.4]} 12... Be7 {[%clk 0:02:23.4]}
13. Bg2 {[%clk 0:01:57.7]} 13... Nb6 {[%clk 0:02:19.1]} 14. Qe2 {[%clk
0:01:55.8]} 14... Nc4 {[%clk 0:02:18.5]} 15. g5 {[%clk 0:01:45.1]} 15... hxg5
{[%clk 0:02:10.4]} 16. Bxg5 {[%clk 0:01:44.4]} 16... Qa5 {[%clk 0:02:08]} 17.
Nb3 {[%clk 0:01:36.7]} 17... Qb4 {[%clk 0:02:06.9]} 18. h6 {[%clk 0:01:32.6]}
18... gxh6 {[%clk 0:02:01.3]} 19. Rxh6 {[%clk 0:01:17.5]} 19... Rxh6 {[%clk
0:02:00.6]} 20. Bxh6 {[%clk 0:01:18.4]} 20... Nxb2 {[%clk 0:02:00.9]} 21. Kxb2
{[%clk 0:01:16.5]} 21... Qxc3+ {[%clk 0:01:58.7]} 22. Kb1 {[%clk 0:01:16.1]}
22... d5 {[%clk 0:01:54]} 23. exd5 {[%clk 0:01:14]} 23... Bxd5 {[%clk
0:01:47.2]} 24. f4 {[%clk 0:01:09.3]} 24... Ba3 {[%clk 0:01:43]} 25. Qe5 {[%clk
0:01:02.3]} 25... Qxc2+ {[%clk 0:01:40.1]} 26. Ka1 {[%clk 0:01:00.1]} 26...
Qxd1+ {[%clk 0:01:39.7]} 0-1

[Event "*** Titled Tuesday Blitz"]
[Site "Chess.com"]
[Date "2020.10.27"]
[Round "8"]
[White "Fortitudine"]
[Black "akanga001"]
[Result "0-1"]
[WhiteElo "2277"]
[BlackElo "1927"]
[TimeControl "180+1"]
[EndTime "11:27:20 PDT"]
[Termination "akanga001 won by resignation"]

1. c4 {[%clk 0:03:00.9]} 1... Nf6 {[%clk 0:02:55.9]} 2. g3 {[%clk 0:03:00.5]}
2... e6 {[%clk 0:02:56.1]} 3. Bg2 {[%clk 0:03:00.2]} 3... d5 {[%clk 0:02:56.7]}
4. Nf3 {[%clk 0:02:59.5]} 4... Be7 {[%clk 0:02:56.4]} 5. O-O {[%clk 0:02:59.5]}
5... O-O {[%clk 0:02:56.3]} 6. b3 {[%clk 0:02:59.9]} 6... b6 {[%clk 0:02:56.4]}
7. cxd5 {[%clk 0:02:59.4]} 7... exd5 {[%clk 0:02:54.4]} 8. d4 {[%clk 0:02:58.1]}
8... Bb7 {[%clk 0:02:54]} 9. Bb2 {[%clk 0:02:57.1]} 9... c5 {[%clk 0:02:50.4]}
10. Nc3 {[%clk 0:02:53]} 10... Nbd7 {[%clk 0:02:48.1]} 11. Rc1 {[%clk
0:02:51.1]} 11... Rc8 {[%clk 0:02:47.4]} 12. e3 {[%clk 0:02:42.9]} 12... Ne4
{[%clk 0:02:43.9]} 13. dxc5 {[%clk 0:02:21.5]} 13... Nxc3 {[%clk 0:02:38]} 14.
Bxc3 {[%clk 0:02:20.1]} 14... Nxc5 {[%clk 0:02:37.5]} 15. Ne5 {[%clk 0:01:30.5]}
15... Bf6 {[%clk 0:02:23]} 16. Re1 {[%clk 0:01:11.4]} 16... Re8 {[%clk
0:02:21.4]} 17. Nf3 {[%clk 0:01:05.8]} 17... Ne4 {[%clk 0:02:20.9]} 18. Bxf6
{[%clk 0:01:05]} 18... Qxf6 {[%clk 0:02:19.5]} 19. Rxc8 {[%clk 0:01:02.1]} 19...
Rxc8 {[%clk 0:02:17.8]} 20. Re2 {[%clk 0:00:57]} 20... Nc3 {[%clk 0:02:16.3]}
21. Qd2 {[%clk 0:00:37.3]} 21... Nxe2+ {[%clk 0:02:15]} 22. Qxe2 {[%clk
0:00:38.2]} 22... Rc1+ {[%clk 0:02:05.5]} 23. Bf1 {[%clk 0:00:30.7]} 23... Bc8
{[%clk 0:01:32.1]} 24. Nd4 {[%clk 0:00:25.4]} 24... Bh3 {[%clk 0:01:30.9]} 0-1